bitfinex/quotes_BTCUSD_20250513
["timestamp","ask_amount","ask_price","bid_price","bid_amount"]
[1747142942440,0.50743251,103830.0,103820.0,0.00380913]
[1747142944497,0.48140185,103830.0,103820.0,0.35437945]
[1747142944728,0.47465546,103830.0,103820.0,0.35437945]
[1747142944949,0.47465546,103830.0,103820.0,0.02040913]
[1747142945419,0.47165546,103830.0,103820.0,0.02040913]
[1747142945725,0.47767315,103830.0,103820.0,0.02040913]
[1747142947428,0.46865546,103830.0,103820.0,0.02040913]
[1747142948327,0.46865546,103830.0,103820.0,0.54702055]
[1747142948525,0.21188415,103830.0,103820.0,0.78277251]
[1747142948730,0.20225349,103830.0,103820.0,0.78277251]
[1747142948950,0.20225349,103830.0,103820.0,0.43917023]
[1747142949152,0.54225349,103830.0,103820.0,0.77314055]
[1747142949718,0.54225349,103830.0,103820.0,0.79240418]
[1747142949912,0.54225349,103830.0,103820.0,0.78277241]
[1747142950362,0.54225349,103830.0,103820.0,0.79240418]
[1747142950779,0.56151527,103830.0,103820.0,0.81166745]
[1747142950993,0.56151527,103830.0,103820.0,0.80203586]
[1747142951846,0.56151527,103830.0,103820.0,0.44880209]
[1747142952059,0.56151527,103830.0,103820.0,0.78277241]
[1747142952531,0.56151527,103830.0,103820.0,0.79240409]
[1747142952742,0.56151527,103830.0,103820.0,0.78277241]
[1747142952963,0.56151527,103830.0,103820.0,0.79240418]
[1747142953193,0.56151527,103830.0,103820.0,0.80203586]
[1747142954073,0.22151527,103830.0,103820.0,0.81166745]
[1747142954289,0.21188415,103830.0,103820.0,0.81166745]
[1747142954497,0.21188415,103830.0,103820.0,0.80203586]
[1747142954718,0.21188415,103830.0,103820.0,0.78277241]
[1747142954939,0.21188415,103830.0,103820.0,0.79240418]
[1747142955191,0.21188415,103830.0,103820.0,0.78277241]
[1747142955412,0.21188415,103830.0,103820.0,0.79240418]
[1747142956564,0.20225349,103830.0,103820.0,0.78277241]
[1747142957395,0.20225349,103830.0,103820.0,0.76737241]
[1747142958011,0.19262255,103830.0,103820.0,0.56509945]
[1747142958216,0.19454835,103830.0,103820.0,0.44140913]
[1747142959093,0.19454835,103830.0,103820.0,0.77537945]
[1747142959495,0.19454835,103830.0,103820.0,0.00380913]
[1747142959496,0.56694835,103830.0,103820.0,0.00380913]
[1747142959728,0.99630227,103830.0,103820.0,0.00380913]
[1747142960059,0.66233195,103830.0,103820.0,0.00380913]
[1747142960631,0.75964135,103830.0,103820.0,0.00380913]
[1747142961438,0.76639751,103830.0,103820.0,0.00380913]
[1747142962302,0.77970131,103830.0,103820.0,0.00380913]
[1747142963040,0.66908811,103830.0,103820.0,0.00380913]
[1747142967266,1.00305843,103830.0,103820.0,0.00380913]
[1747142967823,0.66908811,103830.0,103820.0,0.00380913]
[1747142968652,0.55192496,103810.0,103800.0,0.09367596]
[1747142968852,0.55192496,103810.0,103800.0,0.01654894]
[1747142969924,0.55192496,103810.0,103800.0,0.02054894]
[1747142970150,0.55192496,103810.0,103800.0,0.02454894]
[1747142972088,0.55192496,103810.0,103800.0,0.03786982]
[1747142975772,0.55192496,103810.0,103800.0,0.24690088]
[1747142977573,0.56772496,103810.0,103800.0,0.23160088]
[1747142977778,0.56772496,103810.0,103800.0,0.02132088]
[1747142990810,0.57449634,103810.0,103800.0,0.02132088]
[1747142997649,0.56772496,103810.0,103800.0,0.02132088]
[1747143000390,0.55192496,103810.0,103800.0,0.45950666]
[1747143000614,0.20228988,103820.0,103810.0,0.21889255]
[1747143000869,0.22153679,103820.0,103810.0,0.0331]
[1747143001097,0.34963168,103820.0,103810.0,0.25905981]
[1747143001321,0.20822255,103830.0,103820.0,0.20227296]
[1747143001322,0.00963084,103830.0,103820.0,0.20227296]
[1747143001558,0.00963084,103830.0,103820.0,0.21887315]
[1747143001559,0.22151499,103830.0,103820.0,0.21887315]
[1747143001791,0.22151499,103830.0,103820.0,0.44777885]
[1747143002015,0.21188442,103830.0,103820.0,0.21887315]
[1747143002229,0.21188442,103830.0,103820.0,0.2092411]
[1747143002450,0.20229245,103810.0,103800.0,0.05042088]
[1747143002666,0.21789245,103810.0,103800.0,0.01732088]
[1747143002894,0.55789245,103810.0,103800.0,0.01332088]
[1747143003133,0.20233144,103790.0,103780.0,0.65237037]
[1747143003373,0.19267822,103800.0,103790.0,0.20849679]
[1747143003877,0.19460402,103800.0,103790.0,0.20849679]
[1747143004088,0.19460402,103800.0,103790.0,0.21813162]
[1747143004283,0.19460402,103800.0,103790.0,0.22776636]
[1747143004284,0.19267822,103800.0,103790.0,0.22776636]
[1747143004533,0.21194538,103800.0,103790.0,0.21861633]
[1747143004786,0.22157901,103800.0,103790.0,0.2089815]
[1747143005021,0.21194566,103800.0,103790.0,0.01628471]
[1747143005495,0.02483335,103800.0,103790.0,0.44504471]
[1747143005743,0.34,103810.0,103800.0,0.25307874]
[1747143006009,0.01926178,103830.0,103820.0,0.03476391]
[1747143006246,0.23114611,103830.0,103820.0,0.55172164]
[1747143006484,0.23114611,103830.0,103820.0,0.21777315]
[1747143006711,0.02889188,103830.0,103820.0,0.5709849]
[1747143006926,0.03852291,103830.0,103820.0,0.570985]
[1747143007183,0.03852291,103830.0,103820.0,0.57098509]
[1747143007412,0.03852291,103830.0,103820.0,0.24666819]
[1747143007653,0.03952291,103830.0,103820.0,0.57098509]
[1747143007864,0.03952291,103830.0,103820.0,0.58061668]
[1747143008078,0.03952291,103830.0,103820.0,0.57098509]
[1747143008327,0.039523,103830.0,103820.0,0.57098509]
[1747143008579,0.0414488,103830.0,103820.0,0.56135341]
[1747143008826,0.001,103830.0,103820.0,0.570985]
[1747143009044,0.37851949,103840.0,103830.0,0.22708451]
[1747143009267,0.359259,103840.0,103830.0,0.24634573]
[1747143009472,0.37851874,103840.0,103830.0,0.25011715]
[1747143009895,0.57112358,103840.0,103830.0,0.24048659]
[1747143010327,0.57512358,103840.0,103830.0,0.22122444]
[1747143010513,0.58299394,103840.0,103830.0,0.21565547]
[1747143010725,0.58299394,103840.0,103830.0,0.22528659]
[1747143010947,0.58299394,103840.0,103830.0,0.20602444]
[1747143011368,0.01926206,103830.0,103820.0,0.42755315]
[1747143011581,0.01926141,103830.0,103820.0,0.44681641]
[1747143011786,0.01926086,103830.0,103820.0,0.456448]
[1747143012012,0.0288917,103830.0,103820.0,0.78076509]
[1747143012252,0.02889161,103830.0,103820.0,0.78076509]
[1747143012471,0.0288917,103830.0,103820.0,0.79039658]
[1747143012680,0.03952264,103830.0,103820.0,0.80002798]
[1747143012889,0.0298917,103830.0,103820.0,0.80002798]
[1747143013095,0.03952264,103830.0,103820.0,0.80002798]
[1747143013300,0.03952338,103830.0,103820.0,0.81448651]
[1747143013502,0.02026141,103830.0,103820.0,0.81448651]
[1747143013713,0.02026141,103830.0,103820.0,0.82411791]
[1747143013883,0.02026141,103830.0,103820.0,0.81448651]
[1747143014095,0.02026141,103830.0,103820.0,0.82411791]
[1747143014500,0.02026086,103830.0,103820.0,0.82411791]
[1747143014703,0.02989161,103830.0,103820.0,0.83951791]
[1747143014932,0.03952255,103830.0,103820.0,0.83951791]
[1747143015167,0.02026086,103830.0,103820.0,0.82411791]
[1747143015297,0.01063029,103830.0,103820.0,0.83921791]
[1747143015502,0.02989151,103830.0,103820.0,0.83921791]
[1747143015711,0.02026076,103830.0,103820.0,0.83921791]
[1747143015918,0.02989142,103830.0,103820.0,0.83921791]
[1747143016165,0.01926076,103830.0,103820.0,0.83921791]
[1747143016348,0.02889151,103830.0,103820.0,0.83921791]
[1747143016584,0.56149394,103840.0,103830.0,0.20225349]
[1747143016792,0.56149394,103840.0,103830.0,0.55240198]
[1747143016993,0.56149394,103840.0,103830.0,0.42809349]
[1747143017127,0.56149394,103840.0,103830.0,0.20964]
[1747143017335,0.20225358,103830.0,103820.0,0.26482671]
[1747143017555,0.58418442,103830.0,103820.0,0.003]
[1747143017762,1.01544231,103830.0,103820.0,0.003]
[1747143017936,0.21194538,103800.0,103790.0,0.41876]
[1747143018138,0.21194538,103800.0,103790.0,1.1119415]
[1747143018386,0.21194538,103800.0,103790.0,1.45552464]
[1747143018621,0.21194538,103800.0,103790.0,1.46955735]
[1747143018803,0.21194538,103800.0,103790.0,0.95552464]
[1747143019009,0.21194538,103800.0,103790.0,0.62157615]
[1747143019229,0.21194538,103800.0,103790.0,0.95552482]
[1747143019385,0.21194538,103800.0,103790.0,0.97579402]
[1747143019581,0.21194538,103800.0,103790.0,0.98982692]
[1747143019808,0.20231194,103800.0,103790.0,0.95648482]
[1747143020195,0.20231194,103800.0,103790.0,0.7561532]
[1747143020425,0.54231194,103800.0,103790.0,0.7561532]
[1747143020794,0.54231194,103800.0,103790.0,0.95848482]
[1747143021100,0.56157854,103800.0,103790.0,0.57563402]
[1747143021296,0.56157854,103800.0,103790.0,0.42160471]
[1747143021297,0.55194585,103800.0,103790.0,0.42160471]
[1747143021569,0.56714585,103800.0,103790.0,0.02773385]
[1747143021781,0.58264585,103800.0,103790.0,0.02773385]
[1747143022008,0.56714585,103800.0,103790.0,0.22043064]
[1747143022239,0.55194585,103800.0,103790.0,0.02773385]
[1747143022432,0.58384585,103800.0,103790.0,0.02773385]
[1747143023721,1.08945304,103800.0,103790.0,0.00348471]
[1747143024411,1.42340153,103800.0,103790.0,0.00248471]
[1747143024638,1.43794238,103800.0,103790.0,0.00048471]
[1747143024876,1.43794238,103800.0,103790.0,0.00148471]
[1747143025112,0.02891425,103750.0,103740.0,0.61936517]
[1747143025338,0.03855271,103750.0,103740.0,0.73609312]
[1747143025558,0.02891425,103750.0,103740.0,0.74573213]
[1747143025783,0.02891416,103750.0,103740.0,0.75537096]
[1747143026280,0.22168579,103750.0,103740.0,0.72059321]
[1747143026496,0.56814799,103750.0,103740.0,0.09744945]
[1747143026706,0.91809648,103750.0,103740.0,0.00414005]
[1747143026922,0.56814799,103750.0,103740.0,0.03789372]
[1747143027194,0.55204772,103750.0,103740.0,0.5308782]
[1747143027444,0.54240954,103750.0,103740.0,0.2045691]
[1747143027700,0.53277108,103750.0,103740.0,0.2045691]
[1747143027881,0.53277108,103750.0,103740.0,0.00014005]
[1747143028293,0.55017108,103750.0,103740.0,0.00014005]
[1747143028712,0.97461357,103750.0,103740.0,0.00014005]
[1747143028930,0.90031957,103750.0,103740.0,0.00014005]
[1747143029144,0.99762897,103750.0,103740.0,0.00014005]
[1747143029582,0.66368048,103750.0,103740.0,0.00014005]
[1747143029799,0.99762897,103750.0,103740.0,0.00014005]
[1747143030060,1.09493837,103750.0,103740.0,0.00014005]
[1747143030278,1.30309837,103750.0,103740.0,0.00014005]
[1747143030492,1.30609837,103750.0,103740.0,0.00014005]
[1747143030723,0.66568048,103750.0,103740.0,0.00014005]
[1747143030942,0.64748048,103750.0,103740.0,0.00014005]
[1747143031152,0.64648048,103750.0,103740.0,0.00014005]
[1747143031376,0.66568048,103750.0,103740.0,0.00014005]
[1747143031608,0.66868048,103750.0,103740.0,0.00014005]
[1747143031834,0.55617108,103750.0,103740.0,0.00014005]
[1747143032054,0.21617108,103750.0,103740.0,0.00014005]
[1747143032260,0.55617108,103750.0,103740.0,0.00014005]
[1747143032461,0.21617108,103750.0,103740.0,0.20256919]
[1747143032672,0.55617108,103750.0,103740.0,0.33408854]
[1747143032943,0.55617108,103750.0,103740.0,0.19292971]
[1747143032944,0.21317108,103750.0,103740.0,0.19292971]
[1747143033155,0.21317108,103750.0,103740.0,0.00014005]
[1747143033156,0.55017108,103750.0,103740.0,0.00014005]
[1747143033292,0.55017108,103750.0,103740.0,0.21220839]
[1747143033502,0.53577108,103750.0,103740.0,0.00014005]
[1747143033982,0.53577108,103750.0,103740.0,0.33408854]
[1747143034232,0.53577108,103750.0,103740.0,0.00014005]
[1747143034233,0.55147108,103750.0,103740.0,0.00014005]
[1747143034487,0.99832897,103750.0,103740.0,0.00014005]
[1747143034949,1.20728897,103750.0,103740.0,0.00014005]
[1747143035397,0.87334048,103750.0,103740.0,0.00014005]
[1747143035611,0.64878048,103750.0,103740.0,0.00014005]
[1747143036032,0.66468048,103750.0,103740.0,0.00014005]
[1747143036245,0.64878048,103750.0,103740.0,0.00014005]
[1747143036868,0.66538048,103750.0,103740.0,0.00014005]
[1747143037493,0.64878048,103750.0,103740.0,0.00014005]
[1747143037671,0.66508048,103750.0,103740.0,0.00014005]
[1747143039597,0.64878048,103750.0,103740.0,0.00014005]
[1747143039807,0.66498048,103750.0,103740.0,0.00014005]
[1747143040432,0.64878048,103750.0,103740.0,0.00014005]
[1747143040638,0.55147108,103750.0,103740.0,0.00014005]
[1747143041264,0.35263846,103750.0,103740.0,0.54615679]
[1747143041488,0.54540954,103750.0,103740.0,0.53651759]
[1747143041723,0.54540954,103750.0,103740.0,0.5621567]
[1747143041724,0.003,103750.0,103740.0,0.5621567]
[1747143041927,0.36227552,103750.0,103740.0,0.90574402]
[1747143042156,0.003,103750.0,103740.0,1.00305342]
[1747143042375,0.02227561,103750.0,103740.0,1.00305342]
[1747143042833,0.01063781,103750.0,103740.0,1.00305342]
[1747143043082,0.001,103750.0,103740.0,1.00305342]
[1747143043291,0.0202758,103750.0,103740.0,1.00305342]
[1747143043507,0.01063781,103750.0,103740.0,1.00305342]
[1747143043720,0.23130338,103760.0,103750.0,0.22764752]
[1747143043935,0.22166641,103760.0,103750.0,0.5615962]
[1747143044120,0.21202916,103760.0,103750.0,0.57123428]
[1747143044375,0.21202916,103760.0,103750.0,0.5615962]
[1747143045487,0.20239144,103760.0,103750.0,0.55195793]
[1747143045713,0.22166471,103760.0,103750.0,0.57123438]
[1747143045945,0.22166471,103760.0,103750.0,0.58087228]
[1747143045946,0.00963688,103760.0,103750.0,0.58087228]
[1747143046160,0.02991147,103760.0,103750.0,0.58087228]
[1747143046868,0.2323015,103760.0,103750.0,0.57123438]
[1747143047101,0.20240944,103750.0,103740.0,0.65886647]
[1747143047329,0.20240944,103750.0,103740.0,0.11284945]
[1747143047545,0.20240944,103750.0,103740.0,0.64922699]
[1747143047759,0.20240944,103750.0,103740.0,0.65886628]
[1747143047967,0.20240944,103750.0,103740.0,0.67814459]
[1747143048175,0.20240944,103750.0,103740.0,0.33408854]
[1747143048387,0.20240944,103750.0,103740.0,0.5288782]
[1747143048605,0.20240944,103750.0,103740.0,0.54815679]
[1747143048827,0.01927571,103750.0,103740.0,0.58263435]
[1747143049063,0.001,103760.0,103750.0,0.04411454]
[1747143049287,0.002,103770.0,103760.0,0.23686425]
[1747143049524,0.002,103770.0,103760.0,1.08604214]
[1747143049733,0.01163604,103770.0,103760.0,1.08604214]
[1747143049939,0.002,103770.0,103760.0,1.1097095]
[1747143050161,0.01163604,103770.0,103760.0,1.08604214]
[1747143050554,0.004,103770.0,103760.0,1.08604214]
[1747143050774,0.01363595,103770.0,103760.0,1.10030176]
[1747143050990,0.004,103770.0,103760.0,1.93332576]
[1747143051190,0.004,103770.0,103760.0,1.94452576]
[1747143051415,0.005,103770.0,103760.0,1.94452576]
[1747143051833,0.004,103770.0,103760.0,1.94452576]
[1747143052041,0.004,103770.0,103760.0,1.94652576]
[1747143052466,0.004,103770.0,103760.0,2.69683425]
[1747143052467,0.002,103770.0,103760.0,2.69683425]
[1747143052942,0.002,103770.0,103760.0,2.55737725]
[1747143053168,0.002,103770.0,103760.0,2.14446776]
[1747143053387,0.002,103770.0,103760.0,2.81841625]
[1747143054034,0.002,103770.0,103760.0,2.10932276]
[1747143055514,0.002,103770.0,103760.0,2.44327125]
[1747143055734,0.01163418,103790.0,103780.0,0.23822152]
[1747143055735,0.002,103790.0,103780.0,0.23822152]
[1747143055951,0.002,103790.0,103780.0,1.89997141]
[1747143056192,0.011634,103790.0,103780.0,0.99210241]
[1747143056430,0.21198641,103780.0,103770.0,0.53630249]
[1747143056699,0.21129679,103790.0,103780.0,0.40139535]
[1747143056929,0.23056618,103790.0,103780.0,0.54276854]
[1747143057186,0.58626618,103790.0,103780.0,0.00314005]
[1747143057414,0.68357558,103790.0,103780.0,0.00314005]
[1747143057644,0.68357558,103790.0,103780.0,0.00714005]
[1747143057874,0.68357558,103790.0,103780.0,0.00314005]
[1747143058331,0.68657558,103790.0,103780.0,0.00314005]
[1747143059306,0.68657558,103790.0,103780.0,0.00014005]
[1747143059562,0.69157558,103790.0,103780.0,0.00014005]
[1747143060534,0.78000115,103790.0,103780.0,0.00014005]
[1747143061938,0.69157558,103790.0,103780.0,0.00014005]
[1747143062440,0.59426618,103790.0,103780.0,0.00014005]
[1747143062671,1.02552407,103790.0,103780.0,0.00014005]
[1747143063637,1.36947256,103790.0,103780.0,0.00014005]
[1747143063878,0.58394752,103750.0,103740.0,0.002]
[1747143064111,0.58394752,103750.0,103740.0,0.00204846]
[1747143064829,1.11251481,103750.0,103740.0,0.00204846]
[1747143065052,0.77856632,103750.0,103740.0,0.00204846]
[1747143065265,1.01520541,103750.0,103740.0,0.00204846]
[1747143065498,0.68125692,103750.0,103740.0,0.00204846]
[1747143065728,0.88973692,103750.0,103740.0,0.00204846]
[1747143066225,1.22368541,103750.0,103740.0,0.00204846]
[1747143066453,0.89273692,103750.0,103740.0,0.00204846]
[1747143066897,0.57164752,103750.0,103740.0,0.00204846]
[1747143067135,0.57164752,103750.0,103740.0,0.20447751]
[1747143067362,0.57164752,103750.0,103740.0,0.00204846]
[1747143067582,0.23164752,103750.0,103740.0,0.00204846]
[1747143067812,0.23364752,103750.0,103740.0,0.00204846]
[1747143068266,0.57364752,103750.0,103740.0,0.00204846]
[1747143068917,0.38087644,103750.0,103740.0,0.22375545]
[1747143069151,0.38087644,103750.0,103740.0,0.22375554]
[1747143069152,0.55704752,103750.0,103740.0,0.22375554]
[1747143069378,0.22668533,103750.0,103740.0,0.67122518]
[1747143069623,0.23204752,103750.0,103740.0,0.00204846]
[1747143069844,0.58734752,103750.0,103740.0,0.00204846]
[1747143070103,0.68165692,103750.0,103740.0,0.00204846]
[1747143070324,0.77796632,103750.0,103740.0,0.00204846]
[1747143070755,0.77896632,103750.0,103740.0,0.00204846]
[1747143071204,0.68165692,103750.0,103740.0,0.00204846]
[1747143071428,0.56904752,103750.0,103740.0,0.00204846]
[1747143071882,0.3859149,103750.0,103740.0,0.22375572]
[1747143072097,0.002,103750.0,103740.0,1.00683162]
[1747143072324,0.002,103750.0,103740.0,1.29267864]
[1747143072568,0.01163771,103750.0,103740.0,1.46091664]
[1747143073037,0.02027561,103750.0,103740.0,1.46091664]
[1747143073249,0.001,103750.0,103740.0,1.38378962]
[1747143073480,0.02890906,103770.0,103760.0,0.22166425]
[1747143073724,0.56164299,103770.0,103760.0,0.21202746]
[1747143073949,0.19541514,103780.0,103770.0,0.19273393]
[1747143074210,0.19541514,103780.0,103770.0,0.21200676]
[1747143074211,0.55468638,103780.0,103770.0,0.21200676]
[1747143074423,0.21468638,103780.0,103770.0,0.19273393]
[1747143074633,0.01927245,103770.0,103760.0,0.23130168]
[1747143074846,0.01927199,103770.0,103760.0,0.24730168]
[1747143075069,0.35428102,103780.0,103770.0,0.22164271]
[1747143075285,0.03355171,103780.0,103770.0,0.22164271]
[1747143075512,0.03355153,103780.0,103770.0,0.21200667]
[1747143075737,0.22926744,103780.0,103770.0,0.19273393]
[1747143075972,0.22164242,103770.0,103760.0,0.3060619]
[1747143076190,0.01927208,103770.0,103760.0,0.33497365]
[1747143076403,0.21200667,103770.0,103760.0,0.1927525]
[1747143076622,0.02891454,103750.0,103740.0,0.62715812]
[1747143076803,0.0096379,103750.0,103740.0,0.73818485]
[1747143078142,0.01927598,103750.0,103740.0,0.74418485]
[1747143078386,0.0096379,103750.0,103740.0,0.76785221]
[1747143078629,0.0096379,103750.0,103740.0,0.75018485]
[1747143078862,0.01927598,103750.0,103740.0,0.75018485]
[1747143079099,0.02891416,103750.0,103740.0,0.73086691]
[1747143079339,0.02891407,103750.0,103740.0,0.75978405]
[1747143079806,0.20893393,103770.0,103750.0,0.00963855]
[1747143080028,0.0162,103770.0,103760.0,0.20238993]
[1747143080274,0.02191641,103780.0,103770.0,0.22164289]
[1747143080492,0.01228139,103780.0,103770.0,0.63872289]
[1747143080716,0.0219165,103780.0,103770.0,0.63872289]
[1747143080928,0.0315518,103780.0,103770.0,0.73603229]
[1747143081138,0.04118747,103780.0,103770.0,0.73603238]
[1747143081347,0.04118738,103780.0,103770.0,0.74566842]
[1747143081580,0.0315518,103780.0,103770.0,0.74566842]
[1747143081826,0.002646,103780.0,103770.0,0.76276842]
[1747143082048,0.002646,103780.0,103770.0,2.05942909]
[1747143082485,0.002646,103780.0,103770.0,2.00960909]
[1747143082712,0.002646,103780.0,103770.0,2.02414994]
[1747143082936,0.002646,103780.0,103770.0,2.03554994]
[1747143084258,0.002646,103780.0,103770.0,1.98307546]
[1747143084746,0.002646,103780.0,103770.0,2.39537546]
[1747143085216,0.002646,103780.0,103770.0,1.98307546]
[1747143085475,0.002646,103780.0,103770.0,2.40939546]
[1747143085899,0.002646,103780.0,103770.0,2.41039546]
[1747143086747,0.002646,103780.0,103770.0,2.40939546]
[1747143087200,0.002,103790.0,103780.0,0.27406237]
[1747143087384,0.22826533,103840.0,103830.0,0.21188433]
[1747143087860,0.04528919,103840.0,103830.0,0.32845486]
[1747143088073,0.23789319,103840.0,103830.0,0.31882439]
[1747143088252,0.04528919,103840.0,103830.0,0.32845486]
[1747143088495,0.2480081,103840.0,103830.0,0.31882439]
[1747143088724,0.0554041,103840.0,103830.0,0.32845486]
[1747143088931,0.2480081,103840.0,103830.0,0.31882439]
[1747143089372,0.00048471,103840.0,103830.0,0.78000253]
[1747143089578,0.01011426,103840.0,103830.0,0.79560253]
[1747143090245,0.02974399,103840.0,103830.0,0.79660253]
[1747143090476,0.2516082,103840.0,103830.0,0.0993094]
[1747143090681,0.25727865,103840.0,103830.0,0.32082485]
[1747143090896,0.05504445,103840.0,103830.0,0.33045542]
[1747143091079,0.25727865,103840.0,103830.0,0.35985539]
[1747143091229,0.24764845,103840.0,103830.0,0.37911652]
[1747143091436,0.06467465,103840.0,103830.0,0.36948605]
[1747143091633,0.25727865,103840.0,103830.0,0.36948605]
[1747143091878,0.24764892,103840.0,103830.0,0.13833994]
[1747143092086,0.60384892,103840.0,103830.0,0.002]
[1747143095940,0.03011416,103840.0,103830.0,0.77429783]
[1747143096172,0.03011416,103840.0,103830.0,0.77237178]
[1747143096173,0.04937344,103840.0,103830.0,0.77237178]
[1747143096388,0.03011407,103840.0,103830.0,0.77237178]
[1747143096605,0.03974362,103840.0,103830.0,0.78877178]
[1747143096823,0.04937335,103840.0,103830.0,0.78877178]
[1747143097044,0.05900327,103840.0,103830.0,0.78877178]
[1747143097261,0.04937335,103840.0,103830.0,0.78877178]
[1747143097677,0.03011407,103840.0,103830.0,0.99693178]
[1747143098299,0.03974362,103840.0,103830.0,0.99693178]
[1747143098747,0.04937335,103840.0,103830.0,0.99693178]
[1747143098981,0.02048471,103840.0,103830.0,0.99693178]
[1747143099431,0.37575584,103860.0,103850.0,0.20221463]
[1747143099615,0.04552838,103860.0,103850.0,0.7607006]
[1747143099886,0.0166453,103860.0,103850.0,0.77032922]
[1747143100118,0.00977281,103860.0,103850.0,0.97856922]
[1747143100330,0.02902829,103860.0,103850.0,0.52702155]
[1747143100549,0.03865645,103860.0,103850.0,0.52702155]
[1747143100769,0.03865645,103860.0,103850.0,0.52902155]
[1747143100770,0.05165635,103860.0,103850.0,0.52902155]
[1747143101008,0.23459631,103860.0,103850.0,0.50976403]
[1747143101221,0.05602977,103860.0,103850.0,0.53102182]
[1747143101434,0.04640152,103860.0,103850.0,0.54065044]
[1747143101622,0.05602986,103860.0,103850.0,0.54065044]
[1747143101792,0.04640152,103860.0,103850.0,0.54065044]
[1747143102212,0.06300152,103860.0,103850.0,0.54065044]
[1747143102646,0.06300059,103860.0,103850.0,0.54065044]
[1747143102828,0.07262829,103860.0,103850.0,0.99219811]
[1747143103033,0.05602829,103860.0,103850.0,0.99219811]
[1747143103198,0.06565645,103860.0,103850.0,0.54065044]
[1747143103407,0.08145645,103860.0,103850.0,0.54065044]
[1747143103606,0.0910847,103860.0,103850.0,0.54065044]
[1747143103834,0.08145645,103860.0,103850.0,0.54065044]
[1747143104134,0.07182829,103860.0,103850.0,0.54065044]
[1747143104285,0.08145635,103860.0,103850.0,0.54065044]
[1747143104901,0.09108451,103860.0,103850.0,0.54065044]
[1747143105283,0.08145635,103860.0,103850.0,0.54065044]
[1747143105682,0.0271453,103860.0,103850.0,1.42019811]
[1747143105880,0.0271453,103860.0,103850.0,2.83979213]
[1747143106298,0.0271453,103860.0,103850.0,2.76266511]
[1747143106513,0.0271453,103860.0,103850.0,2.07012811]
[1747143106941,0.0271453,103860.0,103850.0,2.05872811]
[1747143107368,0.0271453,103860.0,103850.0,2.07012811]
[1747143107573,0.0271453,103860.0,103850.0,2.48612811]
[1747143108856,0.03677299,103860.0,103850.0,2.26648811]
[1747143109068,0.03677299,103860.0,103850.0,1.36887044]
[1747143109282,0.07142903,103860.0,103850.0,1.57715044]
[1747143109493,0.06180087,103860.0,103850.0,1.57715044]
[1747143109916,0.04880087,103860.0,103850.0,1.57515044]
[1747143110128,0.25099621,103860.0,103850.0,1.3440494]
[1747143110338,0.25099686,103860.0,103850.0,1.55589283]
[1747143110516,0.25099686,103860.0,103850.0,1.56552191]
[1747143110779,0.04442995,103860.0,103850.0,1.5538932]
[1747143110968,0.03980161,103860.0,103850.0,1.3658709]
[1747143111185,0.23236852,103860.0,103850.0,1.37549989]
[1747143111412,0.23231623,103860.0,103850.0,0.96319989]
[1747143111617,0.23231623,103860.0,103850.0,0.40174545]
[1747143111852,0.6380029,103860.0,103850.0,0.002]
[1747143112090,1.25268188,103860.0,103850.0,0.002]
[1747143112322,1.55855128,103860.0,103850.0,0.002]
[1747143113016,0.68572361,103860.0,103850.0,0.001]
[1747143113233,0.68972361,103860.0,103850.0,0.002]
[1747143113886,0.22151508,103830.0,103820.0,0.0384007]
[1747143114131,0.22151508,103830.0,103820.0,0.24067376]
[1747143114351,0.22151508,103830.0,103820.0,0.20227306]
[1747143114570,0.22151508,103830.0,103810.0,0.71571324]
[1747143114571,0.21190473,103820.0,103810.0,0.05389672]
[1747143114786,0.21190473,103820.0,103810.0,0.26582225]
[1747143115011,0.03496465,103810.0,103800.0,0.63934711]
[1747143115224,0.04459707,103810.0,103800.0,1.15858977]
[1747143115645,0.23725673,103810.0,103800.0,0.93971651]
[1747143115874,0.04459763,103810.0,103800.0,0.95475126]
[1747143116092,0.22762534,103810.0,103800.0,0.73320405]
[1747143116311,0.22762534,103810.0,103800.0,0.87660264]
[1747143116531,0.22762534,103810.0,103800.0,0.05343051]
[1747143116756,0.57429255,103810.0,103800.0,0.00548471]
[1747143117681,0.57429255,103810.0,103800.0,0.00848471]
[1747143118139,1.54106962,103810.0,103800.0,0.00848471]
[1747143118603,1.08952195,103810.0,103800.0,0.00848471]
[1747143118832,0.57329255,103810.0,103800.0,0.00348471]
[1747143119056,0.57329255,103810.0,103800.0,0.00048471]
[1747143119273,0.57329255,103810.0,103800.0,0.00348471]
[1747143119920,1.12214962,103810.0,103800.0,0.00348471]
[1747143120398,1.12214962,103810.0,103800.0,0.00648471]
[1747143121059,0.24260667,103770.0,103760.0,0.002]
[1747143121287,0.58260667,103770.0,103760.0,0.0021453]
[1747143122468,0.0173,103770.0,103760.0,0.29302482]
[1747143122690,0.0173,103770.0,103760.0,0.77348424]
[1747143122691,0.01163604,103770.0,103760.0,0.77348424]
[1747143122919,0.01163586,103770.0,103760.0,0.87079364]
[1747143123145,0.03090813,103770.0,103760.0,1.04081964]
[1747143123378,0.002,103770.0,103760.0,1.02320164]
[1747143123624,0.001,103770.0,103760.0,1.42550164]
[1747143123876,0.23805764,103810.0,103800.0,0.20231203]
[1747143124116,0.24769118,103810.0,103800.0,0.22157938]
[1747143124377,0.04539801,103810.0,103800.0,0.22157938]
[1747143124628,0.02890376,103790.0,103780.0,0.4123]
[1747143124878,0.21196618,103790.0,103780.0,1.03433093]
[1747143125160,0.19269579,103810.0,103790.0,0.22160046]
[1747143125380,0.19269579,103810.0,103800.0,0.22157874]
[1747143125381,0.0151,103810.0,103800.0,0.22157874]
[1747143125600,0.00963186,103820.0,103810.0,0.20229255]
[1747143125601,0.2215366,103820.0,103810.0,0.20229255]
[1747143125823,0.2215366,103820.0,103810.0,0.20229245]
[1747143126055,0.21815358,103830.0,103820.0,0.21190492]
[1747143126278,0.03516178,103830.0,103820.0,0.23116791]
[1747143126475,0.02889206,103830.0,103820.0,0.22153651]
[1747143126759,0.36889206,103830.0,103820.0,0.23116791]
[1747143126993,0.00962992,103840.0,103830.0,0.21188433]
[1747143127242,0.02888864,103840.0,103830.0,0.31882355]
[1747143127468,0.22784806,103840.0,103830.0,0.53689336]
[1747143127692,0.00048432,103840.0,103830.0,0.99807197]
[1747143127913,0.01011368,103840.0,103830.0,1.13500019]
[1747143128103,0.03900344,103840.0,103830.0,1.13500038]
[1747143128365,0.02937324,103840.0,103830.0,0.57541618]
[1747143128595,0.04100325,103840.0,103830.0,0.57541618]
[1747143128824,0.21434843,103840.0,103830.0,0.45968141]
[1747143129050,0.21534843,103840.0,103830.0,0.66193499]
[1747143129341,0.01926132,103830.0,103820.0,0.23116744]
[1747143129571,0.22151527,103830.0,103820.0,0.30921441]
[1747143129799,0.02889272,103830.0,103820.0,0.74995749]
[1747143130029,0.21188461,103830.0,103820.0,0.42148]
[1747143130271,0.21745367,103830.0,103820.0,0.42148]
[1747143130457,0.21745367,103830.0,103820.0,0.63338511]
[1747143130943,0.21945367,103830.0,103820.0,0.63338511]
[1747143131160,0.21945367,103830.0,103820.0,0.64301679]